[Event "AUT-ch 2018"]
[Site "Vienna"]
[Date "2018.07.28"]
[Round "8"]
[White "Gelbenegger, Patrick"]
[Black "Jedinger, Andreas"]
[Result "0-1"]
[ECO "C54"]
[WhiteElo "2260"]
[BlackElo "2090"]
[Annotator "NA"]
[PlyCount "60"]
[EventDate "2018.07.22"]
[EventType "swiss"]
[EventCountry "AUT"]
[SourceTitle "playchess.com"]
[Source "ChessBase"]
[SourceQuality "1"]
[TimeControl "40/5400+30:1800+30"]

1. e4 {[%emt 0:00:00]} e5 {[%emt 0:00:06]} 2. Nf3 {[%emt 0:00:00]} Nc6 {[%emt 0:00:05]} 3. Bc4 {[%emt 0:00:00]} Bc5 {[%emt 0:00:32]} 4. c3 {[%emt 0:00:05]} Nf6 {[%emt 0:00:06]} 5. d3 {[%emt 0:00:08]} a6 {[%emt 0:00:22]} 6. O-O {[%emt 0:00:34]} Ba7 {[%emt 0:00:33]} 7. Re1 {[%emt 0:02:21]} d6 {[%emt 0:00:06]} 8. Bb3 {[%emt 0:00:08]} h6 {[%emt 0:00:08]} 9. Nbd2 {[%emt 0:00:26]} O-O {[%emt 0:00:13]} 10. Nf1 {[%emt 0:00:32]} Re8 {[%emt 0:00:11]} 11. Ng3 {[%emt 0:00:43]} Be6 {[%emt 0:00:29]} 12. Bxe6 {[%emt 0:09:55]} Rxe6 {[%emt 0:00:06]} 13. Nf5 {[%emt 0:09:55]} d5 {[%emt 0:09:56]} 14. Qe2 {[%emt 0:03:46]} Qd7 {[%emt 0:10:35]} 15. N3h4 {[%emt 0:07:55]} Rd8 {[%emt 0:13:10]} 16. Qf3 {[%emt 0:11:45]} dxe4 {[%emt 0:05:59]} 17. dxe4 {[%emt 0:17:55]} Qd3 {[%emt 0:00:46]} 18. Be3 {[%emt 0:02:09]} Bxe3 {[%emt 0:01:40]} 19. Rxe3 {[%emt 0:00:15]} Qc2 {[%emt 0:01:20]} 20. b3 {[%emt 0:07:37]} Kh7 {[%emt 0:04:45]} 21. Qg3 {[%emt 0:01:29]} g6 {[%emt 0:03:03]} 22. Nxh6 {[%emt 0:08:17]} Kxh6 {[%emt 0:00:23]} 23. Nxg6 {[%emt 0:00:34]} Nh5 {[%emt 0:04:19]} 24. Qh3 {[%emt 0:04:03]} Rd1+ {[%emt 0:00:36]} 25. Re1 {[%emt 0:00:15]} Rxa1 {[%emt 0:00:11]} 26. Rxa1 {[%emt 0:00:21]} Rxg6 {[%emt 0:00:06]} 27. g4 {[%emt 0:00:33]} Qxe4 {[%emt 0:01:06]} 28. Qxh5+ {[%emt 0:00:21]} Kg7 {[%emt 0:00:02]} 29. h3 {[%emt 0:00:22]} Qf4 {[%emt 0:03:21]} 30. Rd1 {[%emt 0:00:31]} Rh6 {[%emt 0:03:22]} 0-1

[Event "AUT-ch 2018"]
[Site "Vienna"]
[Date "2018.07.28"]
[Round "8"]
[White "Schmidlechner, Alexander"]
[Black "Charaus, Florian"]
[Result "1/2-1/2"]
[ECO "A40"]
[WhiteElo "2226"]
[BlackElo "2115"]
[Annotator "NA"]
[PlyCount "160"]
[EventDate "2018.07.22"]
[EventType "swiss"]
[EventCountry "AUT"]
[SourceTitle "playchess.com"]
[Source "ChessBase"]
[SourceQuality "1"]
[TimeControl "40/5400+30:1800+30"]

1. d4 {[%emt 0:00:00]} Nf6 {[%emt 0:00:14]} 2. c4 {[%emt 0:00:00]} e6 {[%emt 0:00:05]} 3. g3 {[%emt 0:00:00]} Bb4+ {[%emt 0:00:41]} 4. Nd2 {[%emt 0:00:10]} O-O {[%emt 0:00:21]} 5. Ngf3 {[%emt 0:00:14]} d5 {[%emt 0:00:32]} 6. Qc2 {[%emt 0:01:17]} b6 {[%emt 0:03:24]} 7. Bg2 {[%emt 0:00:25]} Bb7 {[%emt 0:00:06]} 8. O-O {[%emt 0:00:30]} Nbd7 {[%emt 0:02:13]} 9. a3 {[%emt 0:06:30]} Be7 {[%emt 0:08:35]} 10. cxd5 {[%emt 0:09:01]} exd5 {[%emt 0:02:22]} 11. b4 {[%emt 0:04:11]} c6 {[%emt 0:04:52]} 12. Nh4 {[%emt 0:17:09]} Re8 {[%emt 0:06:32]} 13. Bb2 {[%emt 0:08:19]} g6 {[%emt 0:09:28]} 14. Nhf3 {[%emt 0:04:40]} Bf8 {[%emt 0:09:10]} 15. e3 {[%emt 0:00:51]} Rc8 {[%emt 0:01:20]} 16. Bh3 {[%emt 0:06:30]} Rc7 {[%emt 0:07:42]} 17. Rfc1 {[%emt 0:09:23]} Bg7 {[%emt 0:18:37]} 18. a4 {[%emt 0:08:21]} h5 {[%emt 0:06:47]} 19. a5 {[%emt 0:01:45]} Nb8 {[%emt 0:05:11]} 20. Ne5 {[%emt 0:02:30]} Nfd7 {[%emt 0:02:16]} 21. Ndf3 {[%emt 0:01:04]} Nxe5 {[%emt 0:02:58]} 22. dxe5 {[%emt 0:02:43]} Na6 {[%emt 0:00:48]} 23. axb6 {[%emt 0:03:37]} axb6 {[%emt 0:00:28]} 24. Qb3 {[%emt 0:04:47]} c5 {[%emt 0:01:33]} 25. bxc5 {[%emt 0:00:39]} bxc5 {[%emt 0:00:52]} 26. Qb6 {[%emt 0:01:51]} Nb4 {[%emt 0:02:08]} 27. Rxc5 {[%emt 0:00:46]} Rxc5 {[%emt 0:00:33]} 28. Qxc5 {[%emt 0:00:02]} Nd3 {[%emt 0:00:37]} 29. Qb5 {[%emt 0:00:51]} Nxb2 {[%emt 0:01:14]} 30. Qxb2 {[%emt 0:00:39]} Bc6 {[%emt 0:00:22]} 31. Qd4 {[%emt 0:02:48]} Bb5 {[%emt 0:01:04]} 32. Ra7 {[%emt 0:01:41]} Qb8 {[%emt 0:01:56]} 33. Ra1 {[%emt 0:02:30]} Bc4 {[%emt 0:00:24]} 34. Bf1 {[%emt 0:00:41]} Bxf1 {[%emt 0:01:02]} 35. Rxf1 {[%emt 0:00:07]} Bxe5 {[%emt 0:00:41]} 36. Qxd5 {[%emt 0:00:16]} Bf6 {[%emt 0:00:23]} 37. h4 {[%emt 0:00:39]} Kg7 {[%emt 0:00:36]} 38. Kg2 {[%emt 0:00:08]} Re7 {[%emt 0:00:15]} 39. Rd1 {[%emt 0:00:28]} Qb2 {[%emt 0:00:17]} 40. Rd2 {[%emt 0:00:59]} Qb4 {[%emt 0:30:11]} 41. Ra2 {[%emt 0:01:16]} Qg4 {[%emt 0:00:00]} 42. Ra8 {[%emt 0:06:37]} Rd7 {[%emt 0:00:00]} 43. Qb5 {[%emt 0:01:18]} Qe6 {[%emt 0:00:00]} 44. Ra4 {[%emt 0:01:33]} Rd1 {[%emt 0:00:00]} 45. Ra6 {[%emt 0:00:37]} Qe4 {[%emt 0:00:00]} 46. Qb6 {[%emt 0:04:05]} Be5 {[%emt 0:00:00]} 47. Qb3 {[%emt 0:01:40]} Rb1 {[%emt 0:00:00]} 48. Qa4 {[%emt 0:02:27]} Rb4 {[%emt 0:00:00]} 49. Qe8 {[%emt 0:00:42]} Bf6 {[%emt 0:00:00]} 50. Qxe4 {[%emt 0:01:37]} Rxe4 {[%emt 0:00:00]} 51. Rd6 {[%emt 0:01:41]} Ra4 {[%emt 0:00:00]} 52. Rd7 {[%emt 0:01:09]} Rg4 {[%emt 0:00:00]} 53. Kf1 {[%emt 0:02:23]} Ra4 {[%emt 0:00:00]} 54. Nd2 {[%emt 0:01:01]} Bc3 {[%emt 0:00:00]} 55. Nf3 {[%emt 0:01:09]} Bf6 {[%emt 0:00:00]} 56. Nd4 {[%emt 0:00:52]} Ra2 {[%emt 0:00:00]} 57. Ne6+ {[%emt 0:01:53]} Kg8 {[%emt 0:00:12]} 58. Nd8 {[%emt 0:00:30]} Bxd8 {[%emt 0:00:04]} 59. Rxd8+ {[%emt 0:00:05]} Kg7 {[%emt 0:00:03]} 60. Rd7 {[%emt 0:00:14]} Kf6 {[%emt 0:00:14]} 61. Kg2 {[%emt 0:00:23]} Rc2 {[%emt 0:02:23]} 62. Kf3 {[%emt 0:00:24]} Rb2 {[%emt 0:00:49]} 63. Rd6+ {[%emt 0:00:20]} Ke5 {[%emt 0:00:49]} 64. Rd8 {[%emt 0:01:22]} Kf5 {[%emt 0:01:16]} 65. e4+ {[%emt 0:00:43]} Ke5 {[%emt 0:01:07]} 66. Re8+ {[%emt 0:00:45]} Kf6 {[%emt 0:00:07]} 67. Ke3 {[%emt 0:00:38]} Rb3+ {[%emt 0:00:29]} 68. Kf4 {[%emt 0:00:17]} Rb2 {[%emt 0:00:19]} 69. f3 {[%emt 0:00:11]} Re2 {[%emt 0:00:06]} 70. Ra8 {[%emt 0:00:56]} Kg7 {[%emt 0:01:03]} 71. Ra7 {[%emt 0:00:47]} Kf6 {[%emt 0:00:50]} 72. e5+ {[%emt 0:01:07]} Ke6 {[%emt 0:01:12]} 73. Ra6+ {[%emt 0:00:42]} Ke7 {[%emt 0:00:06]} 74. g4 {[%emt 0:01:22]} hxg4 {[%emt 0:02:19]} 75. fxg4 {[%emt 0:00:03]} Rf2+ {[%emt 0:00:11]} 76. Kg5 {[%emt 0:00:16]} Re2 {[%emt 0:00:09]} 77. Ra7+ {[%emt 0:03:26]} Ke6 {[%emt 0:00:08]} 78. h5 {[%emt 0:00:32]} gxh5 {[%emt 0:01:47]} 79. gxh5 {[%emt 0:00:21]} Rxe5+ {[%emt 0:00:05]} 80. Kg4 {[%emt 0:00:18]} Kf6 {[%emt 0:01:32]} 1/2-1/2

[Event "AUT-ch 2018"]
[Site "Vienna"]
[Date "2018.07.28"]
[Round "8"]
[White "Sadilek, Maximilian"]
[Black "Steiner, Adam"]
[Result "0-1"]
[ECO "B18"]
[WhiteElo "2224"]
[BlackElo "2174"]
[Annotator "NA"]
[PlyCount "64"]
[EventDate "2018.07.22"]
[EventType "swiss"]
[EventCountry "AUT"]
[SourceTitle "playchess.com"]
[Source "ChessBase"]
[SourceQuality "1"]
[TimeControl "40/5400+30:1800+30"]

1. e4 {[%emt 0:00:00]} c6 {[%emt 0:00:06]} 2. d4 {[%emt 0:00:21]} d5 {[%emt 0:00:03]} 3. Nd2 {[%emt 0:00:16]} dxe4 {[%emt 0:00:08]} 4. Nxe4 {[%emt 0:00:02]} Bf5 {[%emt 0:00:11]} 5. Ng3 {[%emt 0:00:15]} Bg6 {[%emt 0:00:02]} 6. Bc4 {[%emt 0:00:25]} Nf6 {[%emt 0:02:14]} 7. Nh3 {[%emt 0:04:02]} e5 {[%emt 0:11:51]} 8. dxe5 {[%emt 0:17:16]} Qa5+ {[%emt 0:02:37]} 9. Kf1 {[%emt 0:05:08]} Qxe5 {[%emt 0:06:13]} 10. c3 {[%emt 0:31:57]} Qc5 {[%emt 0:40:28]} 11. Qe2+ {[%emt 0:00:37]} Qe7 {[%emt 0:01:07]} 12. Nf4 {[%emt 0:13:07]} Qxe2+ {[%emt 0:01:52]} 13. Kxe2 {[%emt 0:00:13]} Nbd7 {[%emt 0:02:17]} 14. Nxg6 {[%emt 0:01:15]} hxg6 {[%emt 0:00:06]} 15. Bf4 {[%emt 0:01:42]} Rh4 {[%emt 0:03:21]} 16. Kf3 {[%emt 0:17:26]} g5 {[%emt 0:02:08]} 17. Bc7 {[%emt 0:00:34]} Rxc4 {[%emt 0:07:57]} 18. Rhe1+ {[%emt 0:00:05]} Be7 {[%emt 0:00:36]} 19. Nf5 {[%emt 0:00:26]} g4+ {[%emt 0:00:39]} 20. Ke2 {[%emt 0:02:20]} Re4+ {[%emt 0:00:31]} 21. Kf1 {[%emt 0:01:46]} g6 {[%emt 0:12:52]} 22. Rxe4 {[%emt 0:00:09]} Nxe4 {[%emt 0:00:02]} 23. Nxe7 {[%emt 0:00:11]} Kxe7 {[%emt 0:00:01]} 24. Re1 {[%emt 0:00:18]} Ndf6 {[%emt 0:03:06]} 25. f3 {[%emt 0:00:32]} gxf3 {[%emt 0:00:01]} 26. gxf3 {[%emt 0:00:05]} Kd7 {[%emt 0:00:34]} 27. Bf4 {[%emt 0:02:18]} Nc5 {[%emt 0:01:48]} 28. Bg5 {[%emt 0:00:18]} Nd5 {[%emt 0:00:25]} 29. c4 {[%emt 0:00:34]} Ne6 {[%emt 0:00:29]} 30. Bh4 {[%emt 0:01:01]} Ndf4 {[%emt 0:00:21]} 31. Rd1+ {[%emt 0:00:00]} Ke8 {[%emt 0:00:49]} 32. Bf6 {[%emt 0:00:00]} Nh5 {[%emt 0:00:14]} 0-1

[Event "AUT-ch 2018"]
[Site "Vienna"]
[Date "2018.07.28"]
[Round "8"]
[White "Khalakhan, Jurij"]
[Black "Miazhynski, Yuri"]
[Result "1-0"]
[ECO "B40"]
[WhiteElo "2215"]
[BlackElo "2147"]
[Annotator "NA"]
[PlyCount "83"]
[EventDate "2018.07.22"]
[EventType "swiss"]
[EventCountry "AUT"]
[SourceTitle "playchess.com"]
[Source "ChessBase"]
[SourceQuality "1"]
[TimeControl "40/5400+30:1800+30"]

1. Nf3 {[%emt 0:00:00]} c5 {[%emt 0:01:27]} 2. e4 {[%emt 0:00:00]} e6 {[%emt 0:00:09]} 3. b3 {[%emt 0:00:00]} d6 {[%emt 0:07:48]} 4. Bb2 {[%emt 0:00:00]} a6 {[%emt 0:02:32]} 5. Bd3 {[%emt 0:01:48]} Nc6 {[%emt 0:04:33]} 6. O-O {[%emt 0:01:50]} Nge7 {[%emt 0:06:20]} 7. Re1 {[%emt 0:05:03]} Ng6 {[%emt 0:01:36]} 8. Bf1 {[%emt 0:00:17]} e5 {[%emt 0:03:43]} 9. c3 {[%emt 0:00:51]} Be7 {[%emt 0:00:52]} 10. Na3 {[%emt 0:07:16]} O-O {[%emt 0:06:49]} 11. d4 {[%emt 0:03:57]} Bg4 {[%emt 0:09:53]} 12. dxc5 {[%emt 0:21:16]} dxc5 {[%emt 0:00:24]} 13. Re3 {[%emt 0:08:36]} Qc7 {[%emt 0:06:42]} 14. h3 {[%emt 0:03:01]} Rad8 {[%emt 0:02:13]} 15. Qc2 {[%emt 0:02:29]} Be6 {[%emt 0:00:36]} 16. Ree1 {[%emt 0:02:51]} b5 {[%emt 0:07:21]} 17. Rad1 {[%emt 0:05:04]} Qa5 {[%emt 0:01:57]} 18. Qb1 {[%emt 0:01:38]} c4 {[%emt 0:06:03]} 19. b4 {[%emt 0:01:34]} Nxb4 {[%emt 0:10:26]} 20. cxb4 {[%emt 0:03:17]} Bxb4 {[%emt 0:00:02]} 21. Nc2 {[%emt 0:06:40]} Bxe1 {[%emt 0:00:09]} 22. Rxe1 {[%emt 0:00:20]} f6 {[%emt 0:03:42]} 23. Ba3 {[%emt 0:09:55]} Rf7 {[%emt 0:01:17]} 24. Bb4 {[%emt 0:00:47]} Qa4 {[%emt 0:02:24]} 25. Re3 {[%emt 0:01:19]} c3 {[%emt 0:03:10]} 26. Rxc3 {[%emt 0:01:38]} Qxa2 {[%emt 0:00:57]} 27. Qc1 {[%emt 0:00:56]} Rfd7 {[%emt 0:01:46]} 28. Ne3 {[%emt 0:02:30]} Nf4 {[%emt 0:00:31]} 29. Ra3 {[%emt 0:04:47]} Ne2+ {[%emt 0:00:34]} 30. Bxe2 {[%emt 0:00:01]} Qxe2 {[%emt 0:00:02]} 31. Qc6 {[%emt 0:01:13]} Bxh3 {[%emt 0:06:55]} 32. Ne1 {[%emt 0:00:01]} Bg4 {[%emt 0:01:38]} 33. Nxg4 {[%emt 0:04:01]} Qxg4 {[%emt 0:00:09]} 34. Rg3 {[%emt 0:00:17]} Qf4 {[%emt 0:00:59]} 35. Ba5 {[%emt 0:00:46]} Rd6 {[%emt 0:00:39]} 36. Qb7 {[%emt 0:00:24]} R8d7 {[%emt 0:00:18]} 37. Qc8+ {[%emt 0:00:33]} Kf7 {[%emt 0:00:02]} 38. Bb4 {[%emt 0:01:19]} Rd8 {[%emt 0:00:06]} 39. Qc2 {[%emt 0:00:34]} g5 {[%emt 0:02:42]} 40. Bxd6 {[%emt 0:00:17]} Rxd6 {[%emt 0:30:01]} 41. Qc7+ {[%emt 0:30:24]} Ke6 {[%emt 0:00:01]} 42. Nd3 {[%emt 0:00:34] Kd5} 1-0

[Event "AUT-ch 2018"]
[Site "Vienna"]
[Date "2018.07.28"]
[Round "8"]
[White "Windhager, Hannes"]
[Black "Atzl, Florian"]
[Result "1-0"]
[ECO "C77"]
[WhiteElo "2203"]
[BlackElo "2117"]
[Annotator "NA"]
[PlyCount "91"]
[EventDate "2018.07.22"]
[EventType "swiss"]
[EventCountry "AUT"]
[SourceTitle "playchess.com"]
[Source "ChessBase"]
[SourceQuality "1"]
[TimeControl "40/5400+30:1800+30"]

1. e4 {[%emt 0:00:00]} e5 {[%emt 0:00:07]} 2. Nf3 {[%emt 0:00:00]} Nc6 {[%emt 0:00:10]} 3. Bb5 {[%emt 0:00:00]} a6 {[%emt 0:00:08]} 4. Ba4 {[%emt 0:00:00]} Nf6 {[%emt 0:00:06]} 5. d3 {[%emt 0:00:00]} b5 {[%emt 0:00:39]} 6. Bb3 {[%emt 0:00:00]} Be7 {[%emt 0:04:33]} 7. O-O {[%emt 0:00:07]} d6 {[%emt 0:00:20]} 8. a3 {[%emt 0:00:25]} O-O {[%emt 0:00:23]} 9. Nc3 {[%emt 0:00:20]} Na5 {[%emt 0:01:30]} 10. Ba2 {[%emt 0:01:52]} c6 {[%emt 0:01:13]} 11. h3 {[%emt 0:07:30]} h6 {[%emt 0:00:49]} 12. Re1 {[%emt 0:06:27]} Re8 {[%emt 0:00:24]} 13. Be3 {[%emt 0:13:31]} Bf8 {[%emt 0:01:11]} 14. Qd2 {[%emt 0:06:56]} d5 {[%emt 0:05:58]} 15. exd5 {[%emt 0:00:28]} cxd5 {[%emt 0:00:24]} 16. d4 {[%emt 0:01:39]} Nc6 {[%emt 0:13:10]} 17. Nxe5 {[%emt 0:01:46]} Nxe5 {[%emt 0:00:16]} 18. dxe5 {[%emt 0:00:05]} Rxe5 {[%emt 0:00:43]} 19. Bd4 {[%emt 0:06:59]} Ne4 {[%emt 0:09:04]} 20. Qd3 {[%emt 0:11:22]} Rg5 {[%emt 0:06:11]} 21. Bxd5 {[%emt 0:08:56]} Nxc3 {[%emt 0:01:18]} 22. Bxa8 {[%emt 0:01:10]} Bf5 {[%emt 0:01:08]} 23. Qf3 {[%emt 0:02:41]} Qxd4 {[%emt 0:03:06]} 24. bxc3 {[%emt 0:00:10]} Qh4 {[%emt 0:00:58]} 25. Kf1 {[%emt 0:05:38]} Qc4+ {[%emt 0:04:11]} 26. Kg1 {[%emt 0:00:26]} Qh4 {[%emt 0:00:29]} 27. Kf1 {[%emt 0:00:06]} Qc4+ {[%emt 0:00:08]} 28. Re2 {[%emt 0:04:15]} Bxc2 {[%emt 0:00:40]} 29. Be4 {[%emt 0:01:46]} Bxe4 {[%emt 0:01:21]} 30. Qxe4 {[%emt 0:00:04]} Qxc3 {[%emt 0:00:41]} 31. Rd1 {[%emt 0:01:05]} Qxa3 {[%emt 0:03:04]} 32. Rd8 {[%emt 0:01:20]} g6 {[%emt 0:03:43]} 33. Qd4 {[%emt 0:03:43]} Kh7 {[%emt 0:09:56]} 34. Ree8 {[%emt 0:00:50]} Qc1+ {[%emt 0:01:40]} 35. Ke2 {[%emt 0:01:52]} Qc2+ {[%emt 0:02:37]} 36. Kf3 {[%emt 0:06:23]} Qb3+ {[%emt 0:02:45]} 37. Ke4 {[%emt 0:02:45]} Qc2+ {[%emt 0:03:24]} 38. Kf3 {[%emt 0:00:41]} Qb3+ {[%emt 0:01:09]} 39. Ke4 {[%emt 0:00:10]} Qc2+ {[%emt 0:00:04]} 40. Kf4 {[%emt 0:04:51]} Qf5+ {[%emt 0:43:39]} 41. Ke3 {[%emt 0:30:10]} Rxg2 {[%emt 0:00:10]} 42. Ke2 {[%emt 0:00:00]} Qh5+ {[%emt 0:00:00]} 43. Kf1 {[%emt 0:00:00]} Qxh3 {[%emt 0:00:00]} 44. Rxf8 {[%emt 0:00:00]} Rg4+ {[%emt 0:00:00]} 45. Ke2 {[%emt 0:00:00]} Rxd4 {[%emt 0:00:00]} 46. Rxf7# {[%emt 0:00:00] Qh2} 1-0

[Event "AUT-ch 2018"]
[Site "Vienna"]
[Date "2018.07.28"]
[Round "8"]
[White "Exler, Veronika"]
[Black "Vitouch, Anatol"]
[Result "1/2-1/2"]
[ECO "E04"]
[WhiteElo "2198"]
[BlackElo "2317"]
[Annotator "NA"]
[PlyCount "86"]
[EventDate "2018.07.22"]
[EventType "swiss"]
[EventCountry "AUT"]
[SourceTitle "playchess.com"]
[Source "ChessBase"]
[SourceQuality "1"]
[TimeControl "40/5400+30:1800+30"]

1. d4 {[%emt 0:00:00]} e6 {[%emt 0:00:04]} 2. c4 {[%emt 0:00:00]} d5 {[%emt 0:00:04]} 3. Nf3 {[%emt 0:00:00]} Nf6 {[%emt 0:00:05]} 4. g3 {[%emt 0:00:10]} dxc4 {[%emt 0:00:10]} 5. Bg2 {[%emt 0:00:24]} a6 {[%emt 0:00:08]} 6. O-O {[%emt 0:03:23]} Nc6 {[%emt 0:03:39]} 7. Bg5 {[%emt 0:00:11]} Be7 {[%emt 0:00:34]} 8. e3 {[%emt 0:00:08]} O-O {[%emt 0:00:22]} 9. Qc1 {[%emt 0:06:54]} Na5 {[%emt 0:03:54]} 10. Ne5 {[%emt 0:02:43]} c5 {[%emt 0:04:46]} 11. dxc5 {[%emt 0:12:40]} Qc7 {[%emt 0:11:11]} 12. Nxc4 {[%emt 0:02:28]} Qxc5 {[%emt 0:01:50]} 13. Bxf6 {[%emt 0:08:03]} Bxf6 {[%emt 0:00:33]} 14. Nxa5 {[%emt 0:00:02]} Qxa5 {[%emt 0:00:24]} 15. Nd2 {[%emt 0:02:32]} Bd7 {[%emt 0:08:01]} 16. Ne4 {[%emt 0:08:32]} Be7 {[%emt 0:01:29]} 17. Qc3 {[%emt 0:12:21]} Qxc3 {[%emt 0:08:04]} 18. Nxc3 {[%emt 0:00:18]} Rab8 {[%emt 0:02:04]} 19. Rfd1 {[%emt 0:00:12]} Rfd8 {[%emt 0:00:13]} 20. Rd2 {[%emt 0:04:22]} Be8 {[%emt 0:03:41]} 21. Rxd8 {[%emt 0:05:23]} Bxd8 {[%emt 0:00:16]} 22. Rd1 {[%emt 0:11:27]} Be7 {[%emt 0:00:54]} 23. Kf1 {[%emt 0:03:29]} b5 {[%emt 0:02:35]} 24. Ne4 {[%emt 0:04:16]} f5 {[%emt 0:01:18]} 25. Nc3 {[%emt 0:03:36]} Rd8 {[%emt 0:18:07]} 26. Rxd8 {[%emt 0:03:25]} Bxd8 {[%emt 0:00:06]} 27. Bb7 {[%emt 0:02:05]} b4 {[%emt 0:00:19]} 28. Ne2 {[%emt 0:00:33]} Bb5 {[%emt 0:00:25]} 29. Bc8 {[%emt 0:00:34]} Kf7 {[%emt 0:03:17]} 30. Ke1 {[%emt 0:00:04]} Bf6 {[%emt 0:17:14]} 31. Nd4 {[%emt 0:00:33]} Bxd4 {[%emt 0:00:26]} 32. exd4 {[%emt 0:00:00]} Bc4 {[%emt 0:00:35]} 33. a3 {[%emt 0:03:01]} a5 {[%emt 0:00:38]} 34. axb4 {[%emt 0:00:55]} axb4 {[%emt 0:00:36]} 35. h4 {[%emt 0:00:49]} h6 {[%emt 0:00:52]} 36. Kd2 {[%emt 0:00:54]} g5 {[%emt 0:01:00]} 37. hxg5 {[%emt 0:00:04]} hxg5 {[%emt 0:00:04]} 38. Ke3 {[%emt 0:00:17]} Kg6 {[%emt 0:01:27]} 39. Bb7 {[%emt 0:00:39]} Bd5 {[%emt 0:04:52]} 40. Ba6 {[%emt 0:01:23]} Kf6 {[%emt 0:31:48]} 41. f4 {[%emt 0:13:33]} Kg6 {[%emt 0:00:00]} 42. Be2 {[%emt 0:00:42]} Kf6 {[%emt 0:00:00]} 43. Ba6 {[%emt 0:00:27]} Kg6 {[%emt 0:00:00] Ke4} 1/2-1/2

[Event "AUT-ch 2018"]
[Site "Vienna"]
[Date "2018.07.28"]
[Round "8"]
[White "Goessler, Markus"]
[Black "Thoma, Wilhelm Jun"]
[Result "1-0"]
[ECO "B51"]
[WhiteElo "2190"]
[BlackElo "2190"]
[Annotator "NA"]
[PlyCount "65"]
[EventDate "2018.07.22"]
[EventType "swiss"]
[EventCountry "AUT"]
[SourceTitle "playchess.com"]
[Source "ChessBase"]
[SourceQuality "1"]
[TimeControl "40/5400+30:1800+30"]

1. e4 {[%emt 0:00:00]} c5 {[%emt 0:00:11]} 2. Nf3 {[%emt 0:00:00]} d6 {[%emt 0:00:27]} 3. Bb5+ {[%emt 0:00:30]} Nc6 {[%emt 0:00:24]} 4. O-O {[%emt 0:00:26]} Bd7 {[%emt 0:00:08]} 5. c3 {[%emt 0:00:47]} Nf6 {[%emt 0:00:14]} 6. Re1 {[%emt 0:00:47]} a6 {[%emt 0:00:38]} 7. Ba4 {[%emt 0:00:38]} b5 {[%emt 0:01:02]} 8. Bc2 {[%emt 0:00:10]} Bg4 {[%emt 0:00:25]} 9. h3 {[%emt 0:02:40]} Bxf3 {[%emt 0:00:21]} 10. Qxf3 {[%emt 0:00:16]} g6 {[%emt 0:00:30]} 11. d3 {[%emt 0:06:22]} Bg7 {[%emt 0:00:19]} 12. Nd2 {[%emt 0:10:37]} O-O {[%emt 0:00:34]} 13. Qe2 {[%emt 0:09:11]} Rb8 {[%emt 0:02:37]} 14. Nf3 {[%emt 0:08:05]} Nd7 {[%emt 0:01:40]} 15. Be3 {[%emt 0:03:38]} b4 {[%emt 0:05:49]} 16. d4 {[%emt 0:01:13]} bxc3 {[%emt 0:00:21]} 17. bxc3 {[%emt 0:00:02]} Qa5 {[%emt 0:00:18]} 18. Qd3 {[%emt 0:09:41]} Rfc8 {[%emt 0:05:20]} 19. Bb3 {[%emt 0:02:35]} e6 {[%emt 0:16:39]} 20. Rac1 {[%emt 0:21:16]} cxd4 {[%emt 0:08:52]} 21. cxd4 {[%emt 0:00:24]} Qa3 {[%emt 0:09:03]} 22. Bf4 {[%emt 0:12:18]} a5 {[%emt 0:09:40]} 23. Qa6 {[%emt 0:01:23]} a4 {[%emt 0:09:11]} 24. Qxa4 {[%emt 0:03:03]} Qxa4 {[%emt 0:03:53]} 25. Bxa4 {[%emt 0:00:01]} Rb6 {[%emt 0:03:52]} 26. d5 {[%emt 0:00:46]} Nc5 {[%emt 0:00:49]} 27. Bxc6 {[%emt 0:02:19]} Nd3 {[%emt 0:00:11]} 28. Bxd6 {[%emt 0:02:56]} Rb2 {[%emt 0:02:23]} 29. a4 {[%emt 0:00:48]} Nxe1 {[%emt 0:00:38]} 30. Rxe1 {[%emt 0:00:09]} Ra2 {[%emt 0:00:21]} 31. Rd1 {[%emt 0:00:37]} exd5 {[%emt 0:01:20]} 32. exd5 {[%emt 0:00:14]} Bf6 {[%emt 0:00:58]} 33. Bg3 {[%emt 0:00:44]} 1-0

[Event "AUT-ch 2018"]
[Site "Vienna"]
[Date "2018.07.28"]
[Round "8"]
[White "Schnegg, Anna-Lena"]
[Black "Gerhold, Michael"]
[Result "1/2-1/2"]
[ECO "A18"]
[WhiteElo "2175"]
[BlackElo "2254"]
[Annotator "NA"]
[PlyCount "81"]
[EventDate "2018.07.22"]
[EventType "swiss"]
[EventCountry "AUT"]
[SourceTitle "playchess.com"]
[Source "ChessBase"]
[SourceQuality "1"]
[TimeControl "40/5400+30:1800+30"]

1. c4 {[%emt 0:00:00]} Nf6 {[%emt 0:00:08]} 2. Nc3 {[%emt 0:00:00]} e6 {[%emt 0:00:05]} 3. e4 {[%emt 0:06:48]} d5 {[%emt 0:00:05]} 4. e5 {[%emt 0:02:11]} d4 {[%emt 0:00:13]} 5. exf6 {[%emt 0:08:37]} dxc3 {[%emt 0:00:07]} 6. fxg7 {[%emt 0:01:06]} cxd2+ {[%emt 0:00:17]} 7. Bxd2 {[%emt 0:04:24]} Bxg7 {[%emt 0:00:07]} 8. Qc2 {[%emt 0:03:45]} Bd7 {[%emt 0:19:45]} 9. O-O-O {[%emt 0:13:10]} Bc6 {[%emt 0:00:55]} 10. Nh3 {[%emt 0:08:06]} Nd7 {[%emt 0:01:00]} 11. f3 {[%emt 0:14:19]} Qe7 {[%emt 0:02:19]} 12. Be2 {[%emt 0:06:40]} O-O-O {[%emt 0:00:33]} 13. Be3 {[%emt 0:00:36]} Nb6 {[%emt 0:04:58]} 14. Bxb6 {[%emt 0:06:18]} cxb6 {[%emt 0:03:20]} 15. Rxd8+ {[%emt 0:06:03]} Rxd8 {[%emt 0:02:21]} 16. Rd1 {[%emt 0:01:02]} Rxd1+ {[%emt 0:01:51]} 17. Qxd1 {[%emt 0:03:25]} Qf6 {[%emt 0:02:55]} 18. Qc2 {[%emt 0:00:09]} Qe5 {[%emt 0:02:25]} 19. Qc3 {[%emt 0:03:28]} Qxc3+ {[%emt 0:07:56]} 20. bxc3 {[%emt 0:00:05]} h6 {[%emt 0:01:52]} 21. Kd2 {[%emt 0:00:36]} Kd7 {[%emt 0:01:19]} 22. Nf2 {[%emt 0:00:54]} f5 {[%emt 0:01:05]} 23. Bd3 {[%emt 0:04:34]} Be5 {[%emt 0:01:38]} 24. h3 {[%emt 0:01:07]} Bg3 {[%emt 0:01:35]} 25. Nd1 {[%emt 0:00:57]} Kd6 {[%emt 0:00:22]} 26. Ke3 {[%emt 0:01:19]} Kc5 {[%emt 0:02:37]} 27. Nb2 {[%emt 0:01:16]} Be1 {[%emt 0:01:55]} 28. Nd1 {[%emt 0:00:07]} Bd7 {[%emt 0:04:27]} 29. g4 {[%emt 0:00:32]} Bg3 {[%emt 0:06:18]} 30. f4 {[%emt 0:00:31]} e5 {[%emt 0:05:55]} 31. fxe5 {[%emt 0:00:16]} fxg4 {[%emt 0:00:31]} 32. hxg4 {[%emt 0:00:45]} Bxg4 {[%emt 0:00:13]} 33. Nf2 {[%emt 0:01:11]} Bxf2+ {[%emt 0:02:32]} 34. Kxf2 {[%emt 0:00:04]} Be6 {[%emt 0:05:45]} 35. Kg3 {[%emt 0:00:40]} b5 {[%emt 0:04:10]} 36. cxb5 {[%emt 0:00:23]} Bxa2 {[%emt 0:00:11]} 37. c4 {[%emt 0:00:43]} a5 {[%emt 0:01:19]} 38. bxa6 {[%emt 0:00:27]} bxa6 {[%emt 0:00:01]} 39. e6 {[%emt 0:00:29]} Kd6 {[%emt 0:03:53]} 40. c5+ {[%emt 0:00:10]} Kxe6 {[%emt 0:31:18]} 41. Bxa6 {[%emt 0:30:06]} 1/2-1/2